[Event "Early-Titled-Tuesday-Blitz-October-03-2023"]
[Site "Chess.com"]
[Date "2023.10.03"]
[Round "3"]
[White "ExchangeAB"]
[Black "MightyGMpretender"]
[Result "0-1"]
[WhiteElo "2503"]
[BlackElo "2807"]
[TimeControl "180+1"]
[EndTime "8:28:52 PDT"]
[Termination "MightyGMpretender won by resignation"]

1. d4 {[%clk 0:03:00.9]} 1... g6 {[%clk 0:03:00.8]} 2. e4 {[%clk 0:03:00.4]}
2... Bg7 {[%clk 0:03:01.3]} 3. Nc3 {[%clk 0:03:00.8]} 3... a6 {[%clk 0:03:01]}
4. a4 {[%clk 0:02:59.9]} 4... d6 {[%clk 0:02:54.7]} 5. Nf3 {[%clk 0:03:00]} 5...
Nc6 {[%clk 0:02:54.7]} 6. h3 {[%clk 0:02:58.9]} 6... Nf6 {[%clk 0:02:53.5]} 7.
Be3 {[%clk 0:02:58]} 7... O-O {[%clk 0:02:49.5]} 8. Qd2 {[%clk 0:02:57.6]} 8...
Bd7 {[%clk 0:02:42.5]} 9. Be2 {[%clk 0:02:57]} 9... e5 {[%clk 0:02:34.8]} 10.
dxe5 {[%clk 0:02:51.1]} 10... Nxe5 {[%clk 0:02:32.6]} 11. Nxe5 {[%clk
0:02:47.6]} 11... dxe5 {[%clk 0:02:33.4]} 12. O-O {[%clk 0:02:42.5]} 12... Bc6
{[%clk 0:02:32.6]} 13. Qxd8 {[%clk 0:02:39.4]} 13... Raxd8 {[%clk 0:02:32.2]}
14. f3 {[%clk 0:02:40]} 14... Nh5 {[%clk 0:02:32.8]} 15. Rfd1 {[%clk 0:02:39.2]}
15... Nf4 {[%clk 0:02:30]} 16. Bf1 {[%clk 0:02:39.3]} 16... h5 {[%clk
0:02:20.5]} 17. g3 {[%clk 0:02:37.6]} 17... Ne6 {[%clk 0:02:20.3]} 18. Ne2
{[%clk 0:02:29.1]} 18... f5 {[%clk 0:02:11.4]} 19. Bg2 {[%clk 0:02:17.9]} 19...
Bf6 {[%clk 0:01:57.3]} 20. c3 {[%clk 0:02:10.9]} 20... h4 {[%clk 0:01:51.8]} 21.
g4 {[%clk 0:01:44.2]} 21... fxe4 {[%clk 0:01:50.6]} 22. fxe4 {[%clk 0:01:43.4]}
22... Bg5 {[%clk 0:01:51.1]} 23. Bf2 {[%clk 0:01:31]} 23... Rxd1+ {[%clk
0:01:20.5]} 24. Rxd1 {[%clk 0:01:31.9]} 24... Bxa4 {[%clk 0:01:20.9]} 25. Rd5
{[%clk 0:01:20.3]} 25... Bf6 {[%clk 0:01:21.1]} 26. b4 {[%clk 0:01:01.2]} 26...
Bc6 {[%clk 0:01:20.7]} 27. Rd2 {[%clk 0:01:01.4]} 27... Ng5 {[%clk 0:01:19.2]}
28. Bc5 {[%clk 0:00:57.6]} 28... Rd8 {[%clk 0:01:16.8]} 29. Rxd8+ {[%clk
0:00:52.3]} 29... Bxd8 {[%clk 0:01:17.7]} 30. Bf2 {[%clk 0:00:51.5]} 30... Nxe4
{[%clk 0:01:14.9]} 31. Be1 {[%clk 0:00:48.3]} 31... Kf7 {[%clk 0:01:02.4]} 32.
c4 {[%clk 0:00:47.9]} 32... Ke6 {[%clk 0:01:02.1]} 33. b5 {[%clk 0:00:46.8]}
33... axb5 {[%clk 0:01:01.8]} 34. cxb5 {[%clk 0:00:46.9]} 34... Bd5 {[%clk
0:01:02.1]} 35. Ba5 {[%clk 0:00:39.8]} 35... b6 {[%clk 0:01:00.6]} 36. Bb4
{[%clk 0:00:40.1]} 36... c5 {[%clk 0:01:00.9]} 37. bxc6 {[%clk 0:00:40.1]} 37...
Bxc6 {[%clk 0:01:01.1]} 38. Nc3 {[%clk 0:00:35.9]} 38... Nxc3 {[%clk 0:01:01.4]}
39. Bxc6 {[%clk 0:00:35.8]} 39... Nd5 {[%clk 0:01:01.6]} 40. Be1 {[%clk
0:00:33.8]} 40... e4 {[%clk 0:01:01.3]} 41. Kf2 {[%clk 0:00:31]} 41... Ke5
{[%clk 0:01:01.2]} 42. Ke2 {[%clk 0:00:30.1]} 42... Be7 {[%clk 0:01:00.4]} 43.
Be8 {[%clk 0:00:29.3]} 43... Nf4+ {[%clk 0:01:00.3]} 44. Kf1 {[%clk 0:00:26.1]}
44... e3 {[%clk 0:00:58]} 45. Bc3+ {[%clk 0:00:22.2]} 45... Ke4 {[%clk
0:00:58.3]} 46. Ke1 {[%clk 0:00:20.5]} 46... Kf3 {[%clk 0:00:54]} 47. Bc6+
{[%clk 0:00:19.2]} 47... Kg3 {[%clk 0:00:54.4]} 48. Be5 {[%clk 0:00:18.8]} 48...
g5 {[%clk 0:00:50.6]} 49. Bxf4+ {[%clk 0:00:18.7]} 49... gxf4 {[%clk 0:00:51]}
50. g5 {[%clk 0:00:18.6]} 50... Kxh3 {[%clk 0:00:49.5]} 51. g6 {[%clk
0:00:18.8]} 51... Bf6 {[%clk 0:00:49.7]} 52. Ke2 {[%clk 0:00:14.4]} 52... Kg3
{[%clk 0:00:49.2]} 53. Bh1 {[%clk 0:00:12.2]} 53... h3 {[%clk 0:00:48.7]} 54.
Bc6 {[%clk 0:00:12.4]} 54... Bg7 {[%clk 0:00:49.1]} 55. Bh1 {[%clk 0:00:12.5]}
55... h2 {[%clk 0:00:49.5]} 56. Bd5 {[%clk 0:00:12.6]} 56... b5 {[%clk
0:00:50.3]} 57. Bh1 {[%clk 0:00:12.3]} 57... b4 {[%clk 0:00:51.2]} 0-1

[Event "Early-Titled-Tuesday-Blitz-October-03-2023"]
[Site "Chess.com"]
[Date "2023.10.03"]
[Round "3"]
[White "ViktoriyaTarasova"]
[Black "Doomfist26"]
[Result "0-1"]
[WhiteElo "2379"]
[BlackElo "2582"]
[TimeControl "180+1"]
[EndTime "8:28:53 PDT"]
[Termination "Doomfist26 won by resignation"]

1. d4 {[%clk 0:03:00.9]} 1... Nf6 {[%clk 0:02:55.2]} 2. c4 {[%clk 0:03:00.3]}
2... g6 {[%clk 0:02:52.9]} 3. Nc3 {[%clk 0:03:00.4]} 3... Bg7 {[%clk 0:02:53.5]}
4. e4 {[%clk 0:02:59.4]} 4... d6 {[%clk 0:02:54]} 5. h3 {[%clk 0:02:58.5]} 5...
O-O {[%clk 0:02:53.9]} 6. Be3 {[%clk 0:02:58.9]} 6... e5 {[%clk 0:02:54.4]} 7.
d5 {[%clk 0:02:58.9]} 7... a5 {[%clk 0:02:54.5]} 8. g4 {[%clk 0:02:58.5]} 8...
Na6 {[%clk 0:02:54.9]} 9. Be2 {[%clk 0:02:58.9]} 9... Nc5 {[%clk 0:02:55.1]} 10.
Qc2 {[%clk 0:02:59.3]} 10... c6 {[%clk 0:02:55.2]} 11. O-O-O {[%clk 0:02:50.8]}
11... cxd5 {[%clk 0:02:54.9]} 12. Nxd5 {[%clk 0:02:46.4]} 12... Nxd5 {[%clk
0:02:33.8]} 13. Rxd5 {[%clk 0:02:45.3]} 13... Be6 {[%clk 0:02:25.6]} 14. Rd1
{[%clk 0:02:36.4]} 14... Qc7 {[%clk 0:02:25.6]} 15. Nf3 {[%clk 0:02:25.5]} 15...
a4 {[%clk 0:02:20.8]} 16. Kb1 {[%clk 0:02:20.4]} 16... f5 {[%clk 0:02:13.3]} 17.
Ng5 {[%clk 0:01:55.4]} 17... Bd7 {[%clk 0:02:07]} 18. Qd2 {[%clk 0:01:29.5]}
18... h6 {[%clk 0:01:40.8]} 19. Qxd6 {[%clk 0:01:21.3]} 19... Qxd6 {[%clk
0:01:15.2]} 20. Rxd6 {[%clk 0:01:19.8]} 20... hxg5 {[%clk 0:01:11.1]} 21. Bxc5
{[%clk 0:01:18.5]} 21... Bc6 {[%clk 0:01:11.7]} 22. Rxc6 {[%clk 0:00:47.7]}
22... bxc6 {[%clk 0:01:12.6]} 23. Bxf8 {[%clk 0:00:48.2]} 23... Rxf8 {[%clk
0:01:12.3]} 24. gxf5 {[%clk 0:00:22.9]} 24... gxf5 {[%clk 0:01:13.2]} 25. exf5
{[%clk 0:00:23.3]} 25... Rxf5 {[%clk 0:01:12.2]} 26. Rf1 {[%clk 0:00:20.6]}
26... e4 {[%clk 0:01:01.6]} 27. Kc2 {[%clk 0:00:16.9]} 27... c5 {[%clk
0:00:58.6]} 28. Bg4 {[%clk 0:00:14.6]} 28... Rf4 {[%clk 0:00:56.4]} 29. b3
{[%clk 0:00:11.3]} 29... a3 {[%clk 0:00:55.1]} 30. Be2 {[%clk 0:00:09]} 30...
Rf8 {[%clk 0:00:40.9]} 31. f3 {[%clk 0:00:08.8]} 31... e3 {[%clk 0:00:40.8]} 32.
Bd3 {[%clk 0:00:08.3]} 32... Be5 {[%clk 0:00:32.3]} 33. Kd1 {[%clk 0:00:08]}
33... Kg7 {[%clk 0:00:29.8]} 34. Ke2 {[%clk 0:00:08.6]} 34... Bf4 {[%clk
0:00:30.4]} 35. Rg1 {[%clk 0:00:08.4]} 35... Kf6 {[%clk 0:00:30.6]} 36. Rg4
{[%clk 0:00:07.3]} 36... Rh8 {[%clk 0:00:29.8]} 37. h4 {[%clk 0:00:05]} 37...
Rxh4 {[%clk 0:00:29.9]} 38. Rxh4 {[%clk 0:00:05.5]} 38... gxh4 {[%clk
0:00:30.8]} 39. Kf1 {[%clk 0:00:05.8]} 39... h3 {[%clk 0:00:29.9]} 40. Kg1
{[%clk 0:00:06.1]} 40... Ke5 {[%clk 0:00:28.7]} 41. Bc2 {[%clk 0:00:05.6]} 41...
e2 {[%clk 0:00:28]} 42. Kf2 {[%clk 0:00:04.8]} 42... h2 {[%clk 0:00:28.5]} 0-1

[Event "Early-Titled-Tuesday-Blitz-October-03-2023"]
[Site "Chess.com"]
[Date "2023.10.03"]
[Round "3"]
[White "chessprincesa1"]
[Black "Gyulamiryan-koryun"]
[Result "1-0"]
[WhiteElo "2302"]
[BlackElo "1989"]
[TimeControl "180+1"]
[EndTime "8:28:57 PDT"]
[Termination "chessprincesa1 won on time"]

1. d4 {[%clk 0:02:42.5]} 1... Nf6 {[%clk 0:02:59.3]} 2. c4 {[%clk 0:02:42.7]}
2... c5 {[%clk 0:02:59.5]} 3. d5 {[%clk 0:02:41.6]} 3... b5 {[%clk 0:02:58.8]}
4. Qc2 {[%clk 0:02:41.7]} 4... d6 {[%clk 0:02:56.2]} 5. e4 {[%clk 0:02:41.4]}
5... g6 {[%clk 0:02:52.7]} 6. Nf3 {[%clk 0:02:39.9]} 6... Bg7 {[%clk 0:02:51.8]}
7. cxb5 {[%clk 0:02:38.1]} 7... a6 {[%clk 0:02:51.7]} 8. Nc3 {[%clk 0:02:37]}
8... O-O {[%clk 0:02:47.9]} 9. Be2 {[%clk 0:02:33.5]} 9... Qa5 {[%clk 0:02:41]}
10. Bd2 {[%clk 0:02:24.2]} 10... axb5 {[%clk 0:02:31.7]} 11. Nxb5 {[%clk
0:02:21.8]} 11... Qb6 {[%clk 0:02:29.2]} 12. O-O {[%clk 0:02:17.1]} 12... Nbd7
{[%clk 0:02:22.5]} 13. a4 {[%clk 0:02:15]} 13... Ba6 {[%clk 0:02:09.8]} 14. Rfe1
{[%clk 0:02:02.6]} 14... Bxb5 {[%clk 0:02:01.9]} 15. Bxb5 {[%clk 0:01:55.4]}
15... Ra7 {[%clk 0:01:35.2]} 16. Bc3 {[%clk 0:01:54.8]} 16... Ng4 {[%clk
0:01:29.3]} 17. Rad1 {[%clk 0:01:51.7]} 17... Nge5 {[%clk 0:01:28]} 18. Nxe5
{[%clk 0:01:50.5]} 18... Nxe5 {[%clk 0:01:27.5]} 19. f4 {[%clk 0:01:50.4]} 19...
c4+ {[%clk 0:01:02.8]} 20. Kh1 {[%clk 0:01:43.4]} 20... Nd3 {[%clk 0:01:02]} 21.
Re2 {[%clk 0:01:38.1]} 21... Bxc3 {[%clk 0:00:55.2]} 22. bxc3 {[%clk 0:01:35.1]}
22... Nxf4 {[%clk 0:00:48.3]} 23. Red2 {[%clk 0:01:31.8]} 23... Qe3 {[%clk
0:00:41.4]} 24. Rd4 {[%clk 0:01:21]} 24... Nd3 {[%clk 0:00:35.4]} 25. Rf1 {[%clk
0:01:12.1]} 25... Ne5 {[%clk 0:00:31.9]} 26. Qf2 {[%clk 0:01:00.2]} 26... Qxf2
{[%clk 0:00:21.9]} 27. Rxf2 {[%clk 0:01:01.1]} 27... Rb8 {[%clk 0:00:21.1]} 28.
h3 {[%clk 0:00:58.3]} 28... f6 {[%clk 0:00:20]} 29. Ra2 {[%clk 0:00:54.4]} 29...
Rba8 {[%clk 0:00:18.8]} 30. Kg1 {[%clk 0:00:44.8]} 30... Kg7 {[%clk 0:00:18.3]}
31. Kf2 {[%clk 0:00:44]} 31... Nd3+ {[%clk 0:00:18]} 32. Ke3 {[%clk 0:00:42.4]}
32... Nc5 {[%clk 0:00:16.3]} 33. Rxc4 {[%clk 0:00:41]} 33... Rb8 {[%clk
0:00:11.3]} 34. Rb2 {[%clk 0:00:38.4]} 34... Nxa4 {[%clk 0:00:07.7]} 35. Ra2
{[%clk 0:00:26.3]} 35... Rba8 {[%clk 0:00:05.5]} 36. Rcxa4 {[%clk 0:00:24.9]}
36... Rxa4 {[%clk 0:00:04.7]} 37. Rxa4 {[%clk 0:00:25.8]} 37... Rb8 {[%clk
0:00:04.8]} 38. c4 {[%clk 0:00:25.1]} 38... Rb7 {[%clk 0:00:03.4]} 39. Bc6
{[%clk 0:00:23.4]} 39... Rc7 {[%clk 0:00:02.9]} 40. Rb4 {[%clk 0:00:22.7]} 1-0

[Event "Early-Titled-Tuesday-Blitz-October-03-2023"]
[Site "Chess.com"]
[Date "2023.10.03"]
[Round "3"]
[White "andrzej"]
[Black "FMVolodymyrSakun"]
[Result "0-1"]
[WhiteElo "2467"]
[BlackElo "2663"]
[TimeControl "180+1"]
[EndTime "8:28:58 PDT"]
[Termination "FMVolodymyrSakun won on time"]

1. e4 {[%clk 0:02:59.8]} 1... c5 {[%clk 0:02:58.3]} 2. Nf3 {[%clk 0:02:53.9]}
2... g6 {[%clk 0:02:57]} 3. d4 {[%clk 0:02:54.2]} 3... cxd4 {[%clk 0:02:57.9]}
4. Nxd4 {[%clk 0:02:54.9]} 4... Bg7 {[%clk 0:02:57.8]} 5. c4 {[%clk 0:02:55.5]}
5... Nc6 {[%clk 0:02:57.8]} 6. Be3 {[%clk 0:02:55.2]} 6... Qb6 {[%clk
0:02:57.2]} 7. Nb3 {[%clk 0:02:49.6]} 7... Qd8 {[%clk 0:02:56.3]} 8. Qd2 {[%clk
0:02:48.7]} 8... Nf6 {[%clk 0:02:56.3]} 9. Nc3 {[%clk 0:02:49.2]} 9... O-O
{[%clk 0:02:56]} 10. Be2 {[%clk 0:02:49.5]} 10... d6 {[%clk 0:02:56.4]} 11. O-O
{[%clk 0:02:50]} 11... Be6 {[%clk 0:02:56.7]} 12. Rfd1 {[%clk 0:02:34.7]} 12...
Rc8 {[%clk 0:02:55.8]} 13. c5 {[%clk 0:02:22.1]} 13... Bxb3 {[%clk 0:02:41]} 14.
axb3 {[%clk 0:02:21.9]} 14... dxc5 {[%clk 0:02:38.7]} 15. Bxc5 {[%clk
0:02:15.6]} 15... Qxd2 {[%clk 0:02:19]} 16. Rxd2 {[%clk 0:02:16.5]} 16... Rfd8
{[%clk 0:02:11.2]} 17. Rad1 {[%clk 0:02:03.1]} 17... Rxd2 {[%clk 0:01:56.9]} 18.
Rxd2 {[%clk 0:02:04]} 18... Bh6 {[%clk 0:01:53.1]} 19. Rd1 {[%clk 0:01:59]}
19... b6 {[%clk 0:01:53.1]} 20. Ba3 {[%clk 0:01:48.8]} 20... e5 {[%clk
0:01:50.5]} 21. Nd5 {[%clk 0:01:29.4]} 21... Nxe4 {[%clk 0:01:21.4]} 22. Ba6
{[%clk 0:01:19.7]} 22... Rb8 {[%clk 0:01:11.8]} 23. f3 {[%clk 0:01:11.9]} 23...
Nc5 {[%clk 0:01:07]} 24. Bb5 {[%clk 0:01:01.1]} 24... Nd4 {[%clk 0:01:04.9]} 25.
Bc4 {[%clk 0:00:58.5]} 25... b5 {[%clk 0:00:43.7]} 26. Bxc5 {[%clk 0:00:55.9]}
26... bxc4 {[%clk 0:00:43.8]} 27. Bd6 {[%clk 0:00:39.5]} 27... Rxb3 {[%clk
0:00:32]} 28. Bxe5 {[%clk 0:00:39.4]} 28... Ne6 {[%clk 0:00:20.3]} 29. Nf6+
{[%clk 0:00:33.5]} 29... Kf8 {[%clk 0:00:19.9]} 30. Kf2 {[%clk 0:00:22.8]} 30...
Be3+ {[%clk 0:00:18.4]} 31. Ke2 {[%clk 0:00:21.7]} 31... Nf4+ {[%clk 0:00:18.6]}
32. Kf1 {[%clk 0:00:17.2]} 32... Nd3 {[%clk 0:00:17]} 33. Bc3 {[%clk 0:00:15.8]}
33... h5 {[%clk 0:00:16.2]} 34. Nd5 {[%clk 0:00:13.8]} 34... Bc5 {[%clk
0:00:16]} 35. Nc7 {[%clk 0:00:05.3]} 35... Nxb2 {[%clk 0:00:12.1]} 36. Nd5
{[%clk 0:00:03.6]} 36... Na4 {[%clk 0:00:11.4]} 37. Bf6 {[%clk 0:00:02]} 37...
c3 {[%clk 0:00:10.7]} 0-1

[Event "Early-Titled-Tuesday-Blitz-October-03-2023"]
[Site "Chess.com"]
[Date "2023.10.03"]
[Round "3"]
[White "astralpulse"]
[Black "KuzubovYuriy"]
[Result "1-0"]
[WhiteElo "2701"]
[BlackElo "2903"]
[TimeControl "180+1"]
[EndTime "8:28:59 PDT"]
[Termination "astralpulse won on time"]

1. d4 {[%clk 0:02:59.7]} 1... g6 {[%clk 0:02:54.3]} 2. e4 {[%clk 0:02:58.7]}
2... Bg7 {[%clk 0:02:54.8]} 3. Nf3 {[%clk 0:02:59]} 3... d6 {[%clk 0:02:54.2]}
4. c3 {[%clk 0:02:57.1]} 4... Nf6 {[%clk 0:02:51.8]} 5. Bb5+ {[%clk 0:02:54.3]}
5... Bd7 {[%clk 0:02:42.1]} 6. Qe2 {[%clk 0:02:31.7]} 6... O-O {[%clk
0:02:37.5]} 7. Bxd7 {[%clk 0:02:29.7]} 7... Qxd7 {[%clk 0:02:29.7]} 8. O-O
{[%clk 0:02:28.9]} 8... Nc6 {[%clk 0:02:27.6]} 9. d5 {[%clk 0:02:22.4]} 9... Nb8
{[%clk 0:02:14.4]} 10. c4 {[%clk 0:02:10.8]} 10... e5 {[%clk 0:02:12.5]} 11. Nc3
{[%clk 0:02:05.5]} 11... Nh5 {[%clk 0:02:11.7]} 12. g3 {[%clk 0:02:00.3]} 12...
Na6 {[%clk 0:02:05.2]} 13. Be3 {[%clk 0:01:54.6]} 13... Rae8 {[%clk 0:01:59.3]}
14. Ne1 {[%clk 0:01:41]} 14... f5 {[%clk 0:01:21.8]} 15. exf5 {[%clk 0:01:36.9]}
15... Nf4 {[%clk 0:01:22.4]} 16. Qc2 {[%clk 0:00:47.7]} 16... Rxf5 {[%clk
0:01:13.7]} 17. Ne4 {[%clk 0:00:42.7]} 17... Nb4 {[%clk 0:01:06.2]} 18. Qd2
{[%clk 0:00:41.7]} 18... Rh5 {[%clk 0:00:49.8]} 19. f3 {[%clk 0:00:40.8]} 19...
g5 {[%clk 0:00:38.7]} 20. a3 {[%clk 0:00:33.9]} 20... Na6 {[%clk 0:00:36.2]} 21.
b4 {[%clk 0:00:34.2]} 21... Qh3 {[%clk 0:00:31.8]} 22. Ra2 {[%clk 0:00:33.8]}
22... Rf8 {[%clk 0:00:18]} 23. gxf4 {[%clk 0:00:33.5]} 23... gxf4 {[%clk
0:00:11.2]} 24. Bxa7 {[%clk 0:00:33.4]} 24... Ra8 {[%clk 0:00:10.2]} 25. b5
{[%clk 0:00:30.1]} 25... Rxa7 {[%clk 0:00:07.1]} 26. bxa6 {[%clk 0:00:30.2]}
26... Rxa6 {[%clk 0:00:08]} 27. Qg2 {[%clk 0:00:29.3]} 27... Qf5 {[%clk
0:00:06.7]} 28. Qg4 {[%clk 0:00:29.1]} 28... Qf7 {[%clk 0:00:05.7]} 29. Ng5
{[%clk 0:00:25.9]} 29... Qe8 {[%clk 0:00:04]} 30. Qe6+ {[%clk 0:00:25.6]} 30...
Kf8 {[%clk 0:00:02.2]} 31. Qxe8+ {[%clk 0:00:23.6]} 31... Kxe8 {[%clk
0:00:03.1]} 32. Ne6 {[%clk 0:00:23.7]} 32... Bh6 {[%clk 0:00:03.4]} 33. Nxc7+
{[%clk 0:00:23.5]} 33... Kd7 {[%clk 0:00:03.9]} 34. Nxa6 {[%clk 0:00:23.5]}
34... bxa6 {[%clk 0:00:04.8]} 35. Nd3 {[%clk 0:00:21.7]} 35... e4 {[%clk
0:00:04.5]} 36. fxe4 {[%clk 0:00:20.8]} 36... Rh3 {[%clk 0:00:05.2]} 37. Nf2
{[%clk 0:00:19.3]} 37... Rc3 {[%clk 0:00:04.4]} 38. Rb1 {[%clk 0:00:18.4]} 38...
Bg7 {[%clk 0:00:03.6]} 39. Rab2 {[%clk 0:00:18.1]} 39... Bd4 {[%clk 0:00:03.6]}
40. Kg2 {[%clk 0:00:17.1]} 40... f3+ {[%clk 0:00:03.1]} 41. Kg3 {[%clk
0:00:16.3]} 41... Be5+ {[%clk 0:00:02.6]} 42. Kg4 {[%clk 0:00:17]} 42... h5+
{[%clk 0:00:02.5]} 43. Kf5 {[%clk 0:00:17]} 43... Rxc4 {[%clk 0:00:03.4]} 44.
Rb7+ {[%clk 0:00:16.5]} 1-0

[Event "Early-Titled-Tuesday-Blitz-October-03-2023"]
[Site "Chess.com"]
[Date "2023.10.03"]
[Round "3"]
[White "ural58"]
[Black "FM_Kappeler"]
[Result "0-1"]
[WhiteElo "2510"]
[BlackElo "2340"]
[TimeControl "180+1"]
[EndTime "8:28:59 PDT"]
[Termination "FM_Kappeler won on time"]

1. e4 {[%clk 0:02:59.6]} 1... c5 {[%clk 0:02:58.9]} 2. b3 {[%clk 0:02:59.4]}
2... e6 {[%clk 0:02:54.5]} 3. Nf3 {[%clk 0:02:57.2]} 3... a6 {[%clk 0:02:54.1]}
4. Bb2 {[%clk 0:02:53.3]} 4... Nc6 {[%clk 0:02:53.5]} 5. c4 {[%clk 0:02:49.2]}
5... Qc7 {[%clk 0:02:53.3]} 6. d4 {[%clk 0:02:35]} 6... cxd4 {[%clk 0:02:52.8]}
7. Nxd4 {[%clk 0:02:34.8]} 7... Qe5 {[%clk 0:02:52.8]} 8. Be2 {[%clk 0:02:09]}
8... Bb4+ {[%clk 0:02:47.3]} 9. Kf1 {[%clk 0:02:06.9]} 9... Nf6 {[%clk
0:02:25.2]} 10. Nxc6 {[%clk 0:01:28]} 10... Qxb2 {[%clk 0:02:24.4]} 11. Nxb4
{[%clk 0:01:27.9]} 11... Qxa1 {[%clk 0:02:22.8]} 12. Bd3 {[%clk 0:01:01.6]}
12... O-O {[%clk 0:02:17.4]} 13. Ke2 {[%clk 0:00:43.8]} 13... a5 {[%clk
0:02:02.1]} 14. Nc2 {[%clk 0:00:43.7]} 14... Qxa2 {[%clk 0:02:01.7]} 15. Nd2
{[%clk 0:00:43.9]} 15... d5 {[%clk 0:01:46]} 16. cxd5 {[%clk 0:00:40.7]} 16...
exd5 {[%clk 0:01:44.3]} 17. e5 {[%clk 0:00:41]} 17... Ne4 {[%clk 0:01:38.2]} 18.
Nxe4 {[%clk 0:00:28.7]} 18... dxe4 {[%clk 0:01:31.7]} 19. Bxe4 {[%clk
0:00:27.7]} 19... Qxb3 {[%clk 0:01:13.4]} 20. Qa1 {[%clk 0:00:20.4]} 20... Be6
{[%clk 0:00:57.2]} 21. Rb1 {[%clk 0:00:19.8]} 21... Qc4+ {[%clk 0:00:55.9]} 22.
Bd3 {[%clk 0:00:19.1]} 22... Qg4+ {[%clk 0:00:53.7]} 23. Kf1 {[%clk 0:00:18]}
23... Rad8 {[%clk 0:00:42.3]} 24. Be2 {[%clk 0:00:16.4]} 24... Bc4 {[%clk
0:00:40.6]} 25. f3 {[%clk 0:00:15.2]} 25... Bxe2+ {[%clk 0:00:40]} 26. Kf2
{[%clk 0:00:15.2]} 26... Qc4 {[%clk 0:00:31.5]} 27. Ne3 {[%clk 0:00:15.2]} 27...
Qd3 {[%clk 0:00:26.9]} 28. Rxb7 {[%clk 0:00:13.5]} 28... Bd1 {[%clk 0:00:19.7]}
29. Ng4 {[%clk 0:00:08.9]} 29... Qe2+ {[%clk 0:00:19.5]} 30. Kg3 {[%clk
0:00:09.2]} 30... Qe1+ {[%clk 0:00:18.6]} 31. Kh3 {[%clk 0:00:08.9]} 31... Rd3
{[%clk 0:00:09.6]} 32. e6 {[%clk 0:00:04.4]} 32... Qxe6 {[%clk 0:00:08.1]} 33.
Kg3 {[%clk 0:00:02.5]} 33... Qd6+ {[%clk 0:00:07.1]} 34. Kh3 {[%clk 0:00:02.3]}
34... a4 {[%clk 0:00:07.2]} 0-1

[Event "Early-Titled-Tuesday-Blitz-October-03-2023"]
[Site "Chess.com"]
[Date "2023.10.03"]
[Round "3"]
[White "Mr_ruthless"]
[Black "Alexchess1984"]
[Result "1-0"]
[WhiteElo "2493"]
[BlackElo "2709"]
[TimeControl "180+1"]
[EndTime "8:29:00 PDT"]
[Termination "Mr_ruthless won by resignation"]

1. e4 {[%clk 0:03:00.9]} 1... c5 {[%clk 0:02:59.7]} 2. Nf3 {[%clk 0:03:00.8]}
2... d6 {[%clk 0:02:59.9]} 3. d4 {[%clk 0:03:01.5]} 3... cxd4 {[%clk 0:02:59.9]}
4. Nxd4 {[%clk 0:03:02.4]} 4... Nf6 {[%clk 0:02:59.5]} 5. f3 {[%clk 0:03:03]}
5... g6 {[%clk 0:02:54.9]} 6. c4 {[%clk 0:03:02.5]} 6... Nc6 {[%clk 0:02:54]} 7.
Nc3 {[%clk 0:03:00.1]} 7... Nxd4 {[%clk 0:02:53.2]} 8. Qxd4 {[%clk 0:03:01]}
8... Bg7 {[%clk 0:02:52.9]} 9. Be3 {[%clk 0:02:59.9]} 9... O-O {[%clk
0:02:52.9]} 10. Qd2 {[%clk 0:03:00.3]} 10... Be6 {[%clk 0:02:53]} 11. Rc1 {[%clk
0:02:57.5]} 11... Qa5 {[%clk 0:02:47.3]} 12. Bd3 {[%clk 0:02:52.2]} 12... Rfc8
{[%clk 0:02:45.3]} 13. b3 {[%clk 0:02:51.5]} 13... a6 {[%clk 0:02:42.5]} 14. Ne2
{[%clk 0:02:51.7]} 14... Qd8 {[%clk 0:02:31]} 15. O-O {[%clk 0:02:39.2]} 15...
a5 {[%clk 0:02:24.7]} 16. Nd4 {[%clk 0:02:35.1]} 16... Bd7 {[%clk 0:02:16.1]}
17. a4 {[%clk 0:02:35.4]} 17... Bc6 {[%clk 0:02:12.5]} 18. Nb5 {[%clk
0:02:33.1]} 18... Nd7 {[%clk 0:02:11.9]} 19. Bc2 {[%clk 0:02:27.5]} 19... Nc5
{[%clk 0:02:10.9]} 20. Rcd1 {[%clk 0:02:26.2]} 20... b6 {[%clk 0:02:10]} 21.
Rfe1 {[%clk 0:02:10]} 21... Qd7 {[%clk 0:02:09.1]} 22. Bf2 {[%clk 0:02:05.1]}
22... Qb7 {[%clk 0:02:05.9]} 23. h4 {[%clk 0:01:51.8]} 23... h5 {[%clk 0:02:05]}
24. Bd4 {[%clk 0:01:38.1]} 24... Bxb5 {[%clk 0:01:51.4]} 25. Bxg7 {[%clk
0:01:26.1]} 25... Kxg7 {[%clk 0:01:51.1]} 26. axb5 {[%clk 0:01:26.7]} 26... Ne6
{[%clk 0:01:38.8]} 27. e5 {[%clk 0:01:26.7]} 27... Qc7 {[%clk 0:01:14.7]} 28.
exd6 {[%clk 0:01:24.7]} 28... exd6 {[%clk 0:01:15.6]} 29. Qxd6 {[%clk
0:01:08.8]} 29... a4 {[%clk 0:01:15.2]} 30. bxa4 {[%clk 0:00:47]} 30... Qxc4
{[%clk 0:01:10.2]} 31. Qe5+ {[%clk 0:00:40.1]} 31... Kg8 {[%clk 0:01:09.1]} 32.
Bxg6 {[%clk 0:00:40.6]} 32... Rxa4 {[%clk 0:00:55.9]} 33. Bxh5 {[%clk
0:00:23.1]} 33... Rc5 {[%clk 0:00:48.2]} 34. Bxf7+ {[%clk 0:00:21.8]} 34... Kxf7
{[%clk 0:00:46.7]} 35. Rd7+ {[%clk 0:00:16.5]} 35... Ke8 {[%clk 0:00:46.4]} 36.
Qd6 {[%clk 0:00:15.4]} 36... Qd4+ {[%clk 0:00:32.7]} 37. Qxd4 {[%clk 0:00:15.3]}
37... Rxd4 {[%clk 0:00:33.6]} 38. Rxd4 {[%clk 0:00:15.6]} 38... Kf7 {[%clk
0:00:33]} 39. Rd7+ {[%clk 0:00:15.6]} 39... Ke8 {[%clk 0:00:27.7]} 40. Rd6
{[%clk 0:00:16.1]} 40... Rxb5 {[%clk 0:00:27.7]} 41. Rexe6+ {[%clk 0:00:16.3]}
41... Kf7 {[%clk 0:00:27.7]} 42. Rxb6 {[%clk 0:00:17.2]} 42... Rc5 {[%clk
0:00:27.5]} 43. Kh2 {[%clk 0:00:17.3]} 43... Kg7 {[%clk 0:00:26.6]} 44. Rec6
{[%clk 0:00:17.7]} 44... Rd5 {[%clk 0:00:26.6]} 45. Rb7+ {[%clk 0:00:18]} 45...
Rd7 {[%clk 0:00:25.7]} 46. Rxd7+ {[%clk 0:00:18.2]} 1-0